{"text_format":"3","workbook":"xlsx","n_sheets":1,"sheets":["ILLALLISJUHLAT"],"not_rendered":{"defined_names":1,"comments":1},"read":"whole","date_system":"1900"}

{"sheet":"ILLALLISJUHLAT","index":0,"n_rows":43,"n_cols":8,"rows_kept":43,"merged":[[2,0,2,7],[21,0,21,7],[24,3,24,7]]}
["ILLALLISBUDJETTIPOHJA"]
[]
["Tässä budjettipohja juhlien suunnittelua varten. Syötä pohjaan summa, jonka haluat käyttää juhlien järjestämiseen. Syötä taulukkoon myös vierasmäärä. Excel-taulukko laskee sinulle erittely-osioon kuinka paljon rahaa on käytössä per vieras ja miten Jyrki sijoittaisi rahat. "]
[]
["Ajateltu kokonaisbudjetti",{"v":1200,"d":"1,200.00 €"}]
["Henkilömäärä",12]
["Budjetti / henkilö",{"$f":"B5/B6","v":{"v":100,"d":"100.00 €"}}]
[]
["(arvioitu jako erilaisten kustannusten kesken)",null,null,"yleinen jako"]
[]
["Ruoka",{"$f":"$B$5*D11","v":480},null,{"v":0.4,"d":"40%"}]
["Tarjoilu",{"$f":"$B$5*D12","v":300},null,{"v":0.25,"d":"25%"}]
["Juomat",300,null,{"v":0.25,"d":"25%"}]
["Astiat vuokrattuna/kertakäyttö",60,null,{"v":0.05,"d":"5%"}]
["Kattaus somisteet, kukat",60,null,{"v":0.05,"d":"5%"}]
[]
[]
[]
[]
["OMA ILLALLISJUHLABUDJETTI"]
[]
["Lisää luvut taulukkoon sitä mukaa kun saat tarjouksia/maksat laskuja.\nJuomien kohdalle täytä montako lasillista tarjotaan per henkilö, montako lasillista on yhdessä pullossa ja kuinka paljon juoma kustantaa per pullo. Taulukko laskee juhlien kokonaissumman taulukon alareunaan.\n"]
["Erittely:"]
["Menu (raaka-aineet tai catering menu)",{"v":0,"d":"0.00 €"}]
["Tarjoilu (jos henkilökuntaa)",{"v":0,"d":"0.00 €"},null,"Juomakustannusten erittely tähän"]
["Juomat",{"$f":"SUM(B27:B32)","v":{"v":0,"d":"0.00 €"}},null,"Lasillista/hlö","Lasillista yht.","Lasillista/plo","Pulloja yht.","plo hinta"]
["   - alkudrinkki",{"$f":"H27*G27","v":{"v":0,"d":"0.00 €"}},null,2,{"$f":"D27*$B$6","v":24},5,{"$f":"E27/F27","v":4.8},{"v":0,"d":"0.00 €"}]
["   - ruokajuomat",{"$f":"H28*G28","v":{"v":0,"d":"0.00 €"}},null,3,{"$f":"D28*$B$6","v":36},5,{"$f":"E28/F28","v":7.2},{"v":0,"d":"0.00 €"}]
["   - kivennäisvedet ja alkoholittomat",{"v":0,"d":"0.00 €"},null,2,24,5,{"$f":"E29/F29","v":4.8},{"v":0,"d":"0.00 €"}]
["   - jälkiruokajuomat",{"v":0,"d":"0.00 €"},null,1,12,11,{"$f":"E30/F30","v":{"v":1.0909090909090908,"d":"1.1"}},{"v":0,"d":"0.00 €"}]
["   - avecit",{"v":0,"d":"0.00 €"},null,1,12,11,{"$f":"E31/F31","v":{"v":1.0909090909090908,"d":"1.1"}},{"v":0,"d":"0.00 €"}]
["   - baarijuomat",{"$f":"H32*G32","v":{"v":0,"d":"0.00 €"}},{"$nulls":4},0,{"v":0,"d":"0.00 €"}]
["Astiat (jos vuokrattuna)",{"v":0,"d":"0.00 €"}]
["Kattaus",{"$f":"SUM(B35:B37)","v":{"v":0,"d":"0.00 €"}}]
["   - pöytäliinat ja servietit",{"v":0,"d":"0.00 €"}]
["   - kukat",{"v":0,"d":"0.00 €"}]
["   - nimikortit, kutsukortit, menukortti",{"v":0,"d":"0.00 €"}]
["Muut kulut",{"v":0,"d":"0.00 €"}]
["Ohjelma",{"v":0,"d":"0.00 €"}]
["YHTEENSÄ",{"$f":"B24+B25+B26+B33+B34+B39+B38","v":{"v":0,"d":"0.00 €"}}]
[]
["henkilömäärä",{"$f":"B6","v":12}]
["Yhteensä / henkilö",{"$f":"IF(B42<=0,\"\",B40/B42)","v":{"v":0,"d":"0.00 €"}}]